[Event "Early-Titled-Tuesday-Blitz-March-26-2024"]
[Site "Chess.com"]
[Date "2024.03.26"]
[Round "8"]
[White "kritipatel"]
[Black "AlainBruxelles"]
[Result "0-1"]
[WhiteElo "2196"]
[BlackElo "2382"]
[TimeControl "180+1"]
[EndTime "9:23:30 PDT"]
[Termination "AlainBruxelles won by resignation"]

1. e4 {[%clk 0:02:55.9]} 1... c6 {[%clk 0:02:58.6]} 2. d4 {[%clk 0:02:53.4]}
2... d5 {[%clk 0:02:58.5]} 3. exd5 {[%clk 0:02:54.1]} 3... cxd5 {[%clk
0:02:58.3]} 4. Bd3 {[%clk 0:02:55]} 4... Nc6 {[%clk 0:02:56.8]} 5. c3 {[%clk
0:02:55.9]} 5... Nf6 {[%clk 0:02:56.2]} 6. Bf4 {[%clk 0:02:56.2]} 6... Qb6
{[%clk 0:02:53.6]} 7. Qb3 {[%clk 0:02:50.8]} 7... Qxb3 {[%clk 0:02:51.6]} 8.
axb3 {[%clk 0:02:51.7]} 8... Nh5 {[%clk 0:02:42.9]} 9. Be3 {[%clk 0:02:50]} 9...
g6 {[%clk 0:02:39.8]} 10. Nd2 {[%clk 0:02:50.1]} 10... Bg7 {[%clk 0:02:37.1]}
11. Ngf3 {[%clk 0:02:50.6]} 11... O-O {[%clk 0:02:34.7]} 12. O-O {[%clk
0:02:50.9]} 12... a6 {[%clk 0:02:32.4]} 13. c4 {[%clk 0:02:40.2]} 13... Nb4
{[%clk 0:02:28.8]} 14. Be2 {[%clk 0:02:38.1]} 14... Nc2 {[%clk 0:02:17.6]} 15.
Ra5 {[%clk 0:02:34.7]} 15... b6 {[%clk 0:01:57.2]} 16. Rxd5 {[%clk 0:02:22.1]}
16... Be6 {[%clk 0:01:56]} 17. Rxh5 {[%clk 0:02:06.5]} 17... gxh5 {[%clk
0:01:55]} 18. Ng5 {[%clk 0:01:59.9]} 18... Bf5 {[%clk 0:01:45.9]} 19. Bxh5
{[%clk 0:01:54.2]} 19... Nxd4 {[%clk 0:01:43.8]} 20. g4 {[%clk 0:01:38.7]} 20...
Bg6 {[%clk 0:01:43.1]} 21. Bxg6 {[%clk 0:01:38.4]} 21... hxg6 {[%clk 0:01:43.8]}
22. f4 {[%clk 0:01:38.7]} 22... Rfd8 {[%clk 0:01:35.2]} 23. f5 {[%clk
0:01:36.6]} 23... Nc2 {[%clk 0:01:27.9]} 24. Bf4 {[%clk 0:01:32.1]} 24... Bd4+
{[%clk 0:01:23.6]} 25. Kg2 {[%clk 0:01:28.1]} 25... Ne3+ {[%clk 0:01:23]} 26.
Bxe3 {[%clk 0:01:16.3]} 26... Bxe3 {[%clk 0:01:23.2]} 27. Nde4 {[%clk
0:01:16.9]} 27... Bxg5 {[%clk 0:01:21.5]} 28. Nxg5 {[%clk 0:01:16.8]} 28... Rd2+
{[%clk 0:01:20.9]} 29. Kg3 {[%clk 0:01:15.6]} 29... f6 {[%clk 0:01:17.4]} 30.
Ne4 {[%clk 0:01:11.9]} 30... Rxb2 {[%clk 0:01:15.6]} 31. fxg6 {[%clk 0:01:12.2]}
31... Rxb3+ {[%clk 0:01:15.3]} 32. Kh4 {[%clk 0:01:11.7]} 32... Kg7 {[%clk
0:01:14.4]} 33. g5 {[%clk 0:01:00.8]} 33... Rh8+ {[%clk 0:01:13.8]} 34. Kg4
{[%clk 0:01:00.7]} 34... Rbh3 {[%clk 0:01:07.8]} 35. gxf6+ {[%clk 0:00:57.9]}
35... exf6 {[%clk 0:01:08.1]} 36. Kf5 {[%clk 0:00:55]} 36... R3h5+ {[%clk
0:01:04.9]} 37. Ke6 {[%clk 0:00:54]} 37... Re5+ {[%clk 0:01:04.4]} 0-1

[Event "Early-Titled-Tuesday-Blitz-March-26-2024"]
[Site "Chess.com"]
[Date "2024.03.26"]
[Round "8"]
[White "Zampronha1971"]
[Black "JosefineHeinemann"]
[Result "0-1"]
[WhiteElo "2359"]
[BlackElo "2517"]
[TimeControl "180+1"]
[EndTime "9:23:37 PDT"]
[Termination "JosefineHeinemann won by checkmate"]

1. e4 {[%clk 0:03:00.9]} 1... c5 {[%clk 0:02:59.1]} 2. Nf3 {[%clk 0:03:00.6]}
2... d6 {[%clk 0:02:59.6]} 3. d4 {[%clk 0:03:01.1]} 3... cxd4 {[%clk 0:03:00.5]}
4. Nxd4 {[%clk 0:03:01.4]} 4... Nf6 {[%clk 0:03:01.2]} 5. Nc3 {[%clk 0:03:01.9]}
5... a6 {[%clk 0:03:01.9]} 6. Bg5 {[%clk 0:03:02]} 6... e6 {[%clk 0:03:02.1]} 7.
f4 {[%clk 0:03:02.3]} 7... h6 {[%clk 0:03:01.6]} 8. Bh4 {[%clk 0:02:56.1]} 8...
Nbd7 {[%clk 0:03:01.4]} 9. Qe2 {[%clk 0:02:49.3]} 9... e5 {[%clk 0:03:01.3]} 10.
fxe5 {[%clk 0:02:47]} 10... dxe5 {[%clk 0:03:00.4]} 11. Nf5 {[%clk 0:02:44]}
11... Nb6 {[%clk 0:03:00.6]} 12. Bxf6 {[%clk 0:02:30.5]} 12... Qxf6 {[%clk
0:02:57.8]} 13. O-O-O {[%clk 0:02:31.4]} 13... Bb4 {[%clk 0:02:41.8]} 14. Qe3
{[%clk 0:02:18]} 14... O-O {[%clk 0:02:28.7]} 15. g4 {[%clk 0:02:06.8]} 15...
Bxc3 {[%clk 0:02:22.5]} 16. Qxc3 {[%clk 0:02:04.4]} 16... Bxf5 {[%clk
0:02:22.6]} 17. gxf5 {[%clk 0:02:03.2]} 17... Rac8 {[%clk 0:02:22.5]} 18. Qe3
{[%clk 0:01:58.5]} 18... Rc6 {[%clk 0:02:21.4]} 19. Kb1 {[%clk 0:01:56]} 19...
Rfc8 {[%clk 0:02:21.3]} 20. Bd3 {[%clk 0:01:56]} 20... Nc4 {[%clk 0:02:18.3]}
21. Bxc4 {[%clk 0:01:50.2]} 21... Rxc4 {[%clk 0:02:19.2]} 22. Rd2 {[%clk
0:01:49.7]} 22... b5 {[%clk 0:02:16.3]} 23. Rg1 {[%clk 0:01:40.7]} 23... b4
{[%clk 0:02:10.2]} 24. b3 {[%clk 0:01:23.3]} 24... Rc3 {[%clk 0:01:58.4]} 25.
Qa7 {[%clk 0:01:23.8]} 25... R3c7 {[%clk 0:01:57]} 26. Qe3 {[%clk 0:01:11]}
26... a5 {[%clk 0:01:54.5]} 27. Rdg2 {[%clk 0:01:05.8]} 27... Kf8 {[%clk
0:01:53.7]} 28. Qg3 {[%clk 0:00:56.7]} 28... Ke7 {[%clk 0:01:38.5]} 29. Qe3
{[%clk 0:00:51.7]} 29... a4 {[%clk 0:01:35.8]} 30. Rxg7 {[%clk 0:00:44.9]} 30...
Rxc2 {[%clk 0:01:32.7]} 31. Qa7+ {[%clk 0:00:38.9]} 31... R2c7 {[%clk 0:01:25]}
32. Qxa4 {[%clk 0:00:39.4]} 32... Qd6 {[%clk 0:01:19.3]} 33. R7g2 {[%clk
0:00:31.5]} 33... Qd3+ {[%clk 0:01:18.3]} 34. Ka1 {[%clk 0:00:25.4]} 34... Rc1+
{[%clk 0:01:17.3]} 35. Rxc1 {[%clk 0:00:25.3]} 35... Rxc1+ {[%clk 0:01:18.2]}
36. Kb2 {[%clk 0:00:25.9]} 36... Qb1# {[%clk 0:01:18.8]} 0-1

[Event "Early-Titled-Tuesday-Blitz-March-26-2024"]
[Site "Chess.com"]
[Date "2024.03.26"]
[Round "8"]
[White "Tolya2"]
[Black "KnightmareJoker"]
[Result "1-0"]
[WhiteElo "2490"]
[BlackElo "2308"]
[TimeControl "180+1"]
[EndTime "9:23:42 PDT"]
[Termination "Tolya2 won by resignation"]

1. Nf3 {[%clk 0:03:00.9]} 1... d5 {[%clk 0:02:59.9]} 2. d4 {[%clk 0:02:59.3]}
2... Nf6 {[%clk 0:03:00.3]} 3. c4 {[%clk 0:02:59.1]} 3... e6 {[%clk 0:03:00.7]}
4. g3 {[%clk 0:02:58.4]} 4... Be7 {[%clk 0:03:01.4]} 5. Bg2 {[%clk 0:02:58.4]}
5... O-O {[%clk 0:03:02.2]} 6. O-O {[%clk 0:02:58.4]} 6... dxc4 {[%clk 0:03:03]}
7. Qc2 {[%clk 0:02:57.4]} 7... a6 {[%clk 0:03:03.2]} 8. a4 {[%clk 0:02:56.6]}
8... Bd7 {[%clk 0:03:02.9]} 9. Qxc4 {[%clk 0:02:56.4]} 9... Bc6 {[%clk
0:02:56.1]} 10. Bg5 {[%clk 0:02:54.2]} 10... h6 {[%clk 0:02:55.3]} 11. Bxf6
{[%clk 0:02:53.3]} 11... Bxf6 {[%clk 0:02:55.7]} 12. Rd1 {[%clk 0:02:52.2]}
12... a5 {[%clk 0:02:53.2]} 13. Nc3 {[%clk 0:02:50.7]} 13... Na6 {[%clk
0:02:53.5]} 14. e4 {[%clk 0:02:48.4]} 14... Nb4 {[%clk 0:02:53]} 15. Rac1 {[%clk
0:02:43.1]} 15... Bg5 {[%clk 0:02:43.3]} 16. Nxg5 {[%clk 0:02:38.7]} 16... Qxg5
{[%clk 0:02:43.4]} 17. d5 {[%clk 0:02:34.6]} 17... exd5 {[%clk 0:02:31.2]} 18.
exd5 {[%clk 0:02:34.1]} 18... Bd7 {[%clk 0:02:29.2]} 19. Ne4 {[%clk 0:02:25.4]}
19... Qg6 {[%clk 0:02:21.9]} 20. Qxc7 {[%clk 0:02:18]} 20... Bxa4 {[%clk
0:02:21.7]} 21. Rd2 {[%clk 0:02:08]} 21... Qg4 {[%clk 0:01:45.3]} 22. h3 {[%clk
0:01:57.3]} 22... Qf5 {[%clk 0:01:43.1]} 23. g4 {[%clk 0:01:51.8]} 23... Qg6
{[%clk 0:01:35.8]} 24. Qxb7 {[%clk 0:01:40.9]} 24... Rab8 {[%clk 0:01:32.3]} 25.
Qc7 {[%clk 0:01:36.3]} 25... Qa6 {[%clk 0:00:48.4]} 26. Nc5 {[%clk 0:01:30.5]}
26... Qb5 {[%clk 0:00:47.4]} 27. Bf1 {[%clk 0:01:28.1]} 27... Qe8 {[%clk
0:00:44]} 28. d6 {[%clk 0:01:21.9]} 28... Rc8 {[%clk 0:00:43]} 29. Qxa5 {[%clk
0:01:20.8]} 29... Qc6 {[%clk 0:00:19.2]} 30. Qxb4 {[%clk 0:01:13.5]} 30... Rb8
{[%clk 0:00:19.6]} 31. Qxa4 {[%clk 0:01:11.2]} 1-0

[Event "Early-Titled-Tuesday-Blitz-March-26-2024"]
[Site "Chess.com"]
[Date "2024.03.26"]
[Round "8"]
[White "jakopogi"]
[Black "Kostya0705"]
[Result "0-1"]
[WhiteElo "2788"]
[BlackElo "2594"]
[TimeControl "180+1"]
[EndTime "9:23:49 PDT"]
[Termination "Kostya0705 won by resignation"]

1. e4 {[%clk 0:03:00.8]} 1... c5 {[%clk 0:02:59.8]} 2. Nc3 {[%clk 0:03:00.5]}
2... Nc6 {[%clk 0:02:54.7]} 3. g3 {[%clk 0:03:00.5]} 3... e6 {[%clk 0:02:55.6]}
4. Bg2 {[%clk 0:03:00.8]} 4... g6 {[%clk 0:02:56.5]} 5. Nge2 {[%clk 0:03:00.8]}
5... Bg7 {[%clk 0:02:57.1]} 6. O-O {[%clk 0:03:01]} 6... a6 {[%clk 0:02:57.7]}
7. a4 {[%clk 0:03:00.4]} 7... Nge7 {[%clk 0:02:57.6]} 8. d3 {[%clk 0:03:00.6]}
8... d5 {[%clk 0:02:57.7]} 9. exd5 {[%clk 0:03:00.9]} 9... exd5 {[%clk
0:02:58.6]} 10. Nf4 {[%clk 0:03:01.5]} 10... d4 {[%clk 0:02:56.6]} 11. Ne4
{[%clk 0:02:57.2]} 11... b6 {[%clk 0:02:57]} 12. a5 {[%clk 0:02:57.2]} 12...
Nxa5 {[%clk 0:02:56.4]} 13. Nf6+ {[%clk 0:02:29.3]} 13... Bxf6 {[%clk
0:02:55.8]} 14. Bxa8 {[%clk 0:02:30.2]} 14... O-O {[%clk 0:02:55.3]} 15. Bd2
{[%clk 0:02:28.1]} 15... Nac6 {[%clk 0:02:54.7]} 16. Qf3 {[%clk 0:02:26.9]}
16... Bd7 {[%clk 0:02:52.3]} 17. Nd5 {[%clk 0:02:14]} 17... Nxd5 {[%clk
0:02:40.7]} 18. Qxd5 {[%clk 0:02:14.9]} 18... Qxa8 {[%clk 0:02:40.6]} 19. Qxd7
{[%clk 0:02:15]} 19... Ne5 {[%clk 0:02:41.2]} 20. Qd6 {[%clk 0:01:37.5]} 20...
Nf3+ {[%clk 0:02:40.2]} 21. Kh1 {[%clk 0:01:20.4]} 21... Be5 {[%clk 0:02:36.6]}
22. Qxb6 {[%clk 0:01:14.5]} 22... Nxd2+ {[%clk 0:02:32.9]} 23. f3 {[%clk
0:01:14.5]} 23... Nxf1 {[%clk 0:02:24.4]} 24. Rxf1 {[%clk 0:01:14.4]} 24... Qc8
{[%clk 0:02:15.6]} 25. Re1 {[%clk 0:01:12.3]} 25... Re8 {[%clk 0:02:13.8]} 26.
Kg2 {[%clk 0:01:11]} 26... h5 {[%clk 0:02:12.7]} 27. Qa5 {[%clk 0:01:01.4]}
27... h4 {[%clk 0:02:08.2]} 28. Qa4 {[%clk 0:01:01.5]} 28... h3+ {[%clk
0:01:59]} 29. Kf1 {[%clk 0:01:00.5]} 29... Re6 {[%clk 0:01:52.8]} 30. Re4 {[%clk
0:00:52]} 30... Bg7 {[%clk 0:01:34.9]} 31. Qc4 {[%clk 0:00:47.1]} 31... Rxe4
{[%clk 0:01:30.5]} 32. dxe4 {[%clk 0:00:48]} 32... Qb7 {[%clk 0:01:25.2]} 33.
Qxc5 {[%clk 0:00:32.3]} 33... Qxb2 {[%clk 0:01:23.8]} 34. Qc8+ {[%clk
0:00:32.3]} 34... Bf8 {[%clk 0:01:24.4]} 35. Qxa6 {[%clk 0:00:26]} 35... Qc1+
{[%clk 0:01:22.1]} 36. Kf2 {[%clk 0:00:22.7]} 36... Qxc2+ {[%clk 0:01:17.7]} 37.
Qe2 {[%clk 0:00:23.2]} 37... d3 {[%clk 0:01:18.1]} 0-1

[Event "Early-Titled-Tuesday-Blitz-March-26-2024"]
[Site "Chess.com"]
[Date "2024.03.26"]
[Round "8"]
[White "atalz0"]
[Black "nikitakhoroshev"]
[Result "1-0"]
[WhiteElo "2379"]
[BlackElo "2625"]
[TimeControl "180+1"]
[EndTime "9:23:49 PDT"]
[Termination "atalz0 won by resignation"]

1. d4 {[%clk 0:03:00.9]} 1... Nf6 {[%clk 0:02:57.3]} 2. c4 {[%clk 0:03:01]} 2...
c5 {[%clk 0:02:57.5]} 3. d5 {[%clk 0:03:01]} 3... b5 {[%clk 0:02:57.7]} 4. cxb5
{[%clk 0:03:01.9]} 4... a6 {[%clk 0:02:58]} 5. f3 {[%clk 0:03:02.5]} 5... g6
{[%clk 0:02:57.4]} 6. e4 {[%clk 0:03:03.4]} 6... d6 {[%clk 0:02:57.4]} 7. a4
{[%clk 0:03:02.7]} 7... Bg7 {[%clk 0:02:53.7]} 8. Na3 {[%clk 0:03:03.2]} 8...
O-O {[%clk 0:02:50.8]} 9. Ne2 {[%clk 0:03:03.1]} 9... Nbd7 {[%clk 0:02:44.1]}
10. Nc3 {[%clk 0:03:02.5]} 10... Nb6 {[%clk 0:02:39.9]} 11. Be2 {[%clk
0:02:59.9]} 11... axb5 {[%clk 0:02:38.5]} 12. Naxb5 {[%clk 0:03:00.8]} 12... Ne8
{[%clk 0:02:27.1]} 13. O-O {[%clk 0:02:55.6]} 13... f5 {[%clk 0:02:26.6]} 14.
exf5 {[%clk 0:02:41.3]} 14... Bxf5 {[%clk 0:02:22]} 15. Bg5 {[%clk 0:02:36.9]}
15... Nf6 {[%clk 0:02:10.9]} 16. Re1 {[%clk 0:02:34.1]} 16... h6 {[%clk
0:02:10.4]} 17. Bh4 {[%clk 0:02:30.5]} 17... Nbd7 {[%clk 0:02:03.1]} 18. f4
{[%clk 0:02:16.9]} 18... Ne4 {[%clk 0:01:57.6]} 19. Bg4 {[%clk 0:01:48.6]} 19...
Ndf6 {[%clk 0:01:44.5]} 20. Bxf6 {[%clk 0:01:32.2]} 20... Nxf6 {[%clk
0:01:31.5]} 21. Bxf5 {[%clk 0:01:32]} 21... gxf5 {[%clk 0:01:31.4]} 22. Qe2
{[%clk 0:01:31.2]} 22... Rf7 {[%clk 0:01:25.6]} 23. Qe6 {[%clk 0:01:24.5]} 23...
Qc8 {[%clk 0:01:21.4]} 24. a5 {[%clk 0:01:09.6]} 24... Qxe6 {[%clk 0:01:13.8]}
25. dxe6 {[%clk 0:01:10.5]} 25... Rff8 {[%clk 0:01:14.1]} 26. a6 {[%clk
0:01:10.2]} 26... Rfc8 {[%clk 0:01:13]} 27. Red1 {[%clk 0:00:53.8]} 27... Ne4
{[%clk 0:01:08.5]} 28. a7 {[%clk 0:00:49.3]} 28... Nxc3 {[%clk 0:01:05.9]} 29.
bxc3 {[%clk 0:00:50.2]} 29... c4 {[%clk 0:00:56.6]} 30. Rd5 {[%clk 0:00:47.5]}
30... Rc5 {[%clk 0:00:55.8]} 31. Rxc5 {[%clk 0:00:46.6]} 31... dxc5 {[%clk
0:00:56.5]} 32. Nc7 {[%clk 0:00:43.2]} 32... Bxc3 {[%clk 0:00:56.6]} 33. Nxa8
{[%clk 0:00:40.4]} 33... Bxa1 {[%clk 0:00:56.3]} 34. Nb6 {[%clk 0:00:40.3]}
34... Bd4+ {[%clk 0:00:56.4]} 35. Kf1 {[%clk 0:00:39.8]} 35... c3 {[%clk
0:00:55.5]} 36. a8=Q+ {[%clk 0:00:39.3]} 1-0

[Event "Early-Titled-Tuesday-Blitz-March-26-2024"]
[Site "Chess.com"]
[Date "2024.03.26"]
[Round "8"]
[White "Lucky_Puncher"]
[Black "GeorgiosSouleidis"]
[Result "1-0"]
[WhiteElo "2481"]
[BlackElo "2596"]
[TimeControl "180+1"]
[EndTime "9:23:52 PDT"]
[Termination "Lucky_Puncher won on time"]

1. d4 {[%clk 0:02:33.4]} 1... Nf6 {[%clk 0:02:59.7]} 2. c4 {[%clk 0:02:32.8]}
2... g6 {[%clk 0:03:00]} 3. Nc3 {[%clk 0:02:33]} 3... Bg7 {[%clk 0:03:00.7]} 4.
e4 {[%clk 0:02:33.4]} 4... d6 {[%clk 0:03:01.5]} 5. h3 {[%clk 0:02:34]} 5... O-O
{[%clk 0:03:01.9]} 6. Be3 {[%clk 0:02:34.8]} 6... Nbd7 {[%clk 0:03:02.2]} 7. Nf3
{[%clk 0:02:34.3]} 7... c5 {[%clk 0:03:02.4]} 8. e5 {[%clk 0:02:32.5]} 8... dxe5
{[%clk 0:02:36.9]} 9. dxe5 {[%clk 0:02:27.2]} 9... Ne8 {[%clk 0:02:37.1]} 10.
Be2 {[%clk 0:02:26.1]} 10... b6 {[%clk 0:02:29.9]} 11. O-O {[%clk 0:01:49]}
11... Bb7 {[%clk 0:02:29.4]} 12. e6 {[%clk 0:01:49.6]} 12... fxe6 {[%clk
0:02:26.3]} 13. Ng5 {[%clk 0:01:50]} 13... Nc7 {[%clk 0:02:22.4]} 14. Nb5 {[%clk
0:01:47]} 14... Rf6 {[%clk 0:02:00.5]} 15. Bg4 {[%clk 0:01:46.1]} 15... Nxb5
{[%clk 0:01:57.4]} 16. Nxe6 {[%clk 0:01:44]} 16... Qb8 {[%clk 0:00:40.2]} 17.
Qxd7 {[%clk 0:01:27.7]} 17... Nd6 {[%clk 0:00:19]} 18. Nxg7 {[%clk 0:01:11.4]}
18... Kxg7 {[%clk 0:00:19.9]} 19. Qxe7+ {[%clk 0:01:11.8]} 19... Rf7 {[%clk
0:00:08.3]} 20. Qe5+ {[%clk 0:01:07.1]} 20... Kg8 {[%clk 0:00:08]} 21. Be6
{[%clk 0:01:07]} 21... Qf8 {[%clk 0:00:06.4]} 22. Rad1 {[%clk 0:01:01.9]} 22...
Nf5 {[%clk 0:00:05.7]} 23. Rd7 {[%clk 0:00:59.4]} 1-0

[Event "Early-Titled-Tuesday-Blitz-March-26-2024"]
[Site "Chess.com"]
[Date "2024.03.26"]
[Round "8"]
[White "HajiyevKanan"]
[Black "amylazy"]
[Result "1-0"]
[WhiteElo "2540"]
[BlackElo "2416"]
[TimeControl "180+1"]
[EndTime "9:23:56 PDT"]
[Termination "HajiyevKanan won by resignation"]

1. d4 {[%clk 0:03:00.9]} 1... Nf6 {[%clk 0:02:58]} 2. Nf3 {[%clk 0:03:01.8]}
2... g6 {[%clk 0:02:57.9]} 3. c4 {[%clk 0:03:02.7]} 3... Bg7 {[%clk 0:02:58.4]}
4. g3 {[%clk 0:03:03.6]} 4... O-O {[%clk 0:02:58.1]} 5. Bg2 {[%clk 0:03:04.5]}
5... c6 {[%clk 0:02:58.7]} 6. O-O {[%clk 0:03:05.4]} 6... d5 {[%clk 0:02:59.4]}
7. b3 {[%clk 0:03:06.2]} 7... dxc4 {[%clk 0:02:57.8]} 8. bxc4 {[%clk 0:03:07.1]}
8... Be6 {[%clk 0:02:57.3]} 9. Nbd2 {[%clk 0:02:54.6]} 9... Na6 {[%clk
0:02:40.8]} 10. Rb1 {[%clk 0:02:53.8]} 10... Qc8 {[%clk 0:02:36.8]} 11. Qc2
{[%clk 0:02:45.1]} 11... Rb8 {[%clk 0:02:28.8]} 12. Ba3 {[%clk 0:02:45]} 12...
Re8 {[%clk 0:02:28.3]} 13. Ng5 {[%clk 0:02:44.9]} 13... Bd7 {[%clk 0:02:25.5]}
14. e4 {[%clk 0:02:45]} 14... h6 {[%clk 0:02:25]} 15. Ngf3 {[%clk 0:02:45.2]}
15... Bh3 {[%clk 0:02:24.8]} 16. e5 {[%clk 0:02:43.9]} 16... Nh5 {[%clk
0:02:24.7]} 17. Rfe1 {[%clk 0:02:42.5]} 17... Bxg2 {[%clk 0:02:24.3]} 18. Kxg2
{[%clk 0:02:43.4]} 18... Qg4 {[%clk 0:02:19.5]} 19. Re4 {[%clk 0:02:40.8]} 19...
Qf5 {[%clk 0:02:15]} 20. g4 {[%clk 0:02:00]} 20... Nf4+ {[%clk 0:02:14.3]} 21.
Kh1 {[%clk 0:01:56.1]} 21... Qxg4 {[%clk 0:02:12.8]} 22. Rg1 {[%clk 0:01:54.2]}
22... Qf5 {[%clk 0:02:12.7]} 23. Nh4 {[%clk 0:01:46.9]} 23... Qh5 {[%clk
0:01:57.7]} 24. Rxf4 {[%clk 0:01:46.9]} 24... g5 {[%clk 0:01:57.3]} 25. Rfg4
{[%clk 0:01:47.5]} 25... Kh8 {[%clk 0:01:48.6]} 26. Nf5 {[%clk 0:01:42.9]} 26...
Bf8 {[%clk 0:01:47]} 27. f4 {[%clk 0:01:41]} 27... e6 {[%clk 0:01:45.2]} 28. Nd6
{[%clk 0:01:00.7]} 28... Bxd6 {[%clk 0:01:34.4]} 29. Bxd6 {[%clk 0:00:58.2]}
29... Rbd8 {[%clk 0:01:35]} 30. fxg5 {[%clk 0:00:57.4]} 30... Rg8 {[%clk
0:01:28.8]} 31. Ne4 {[%clk 0:00:49.9]} 31... Qh3 {[%clk 0:01:23.6]} 32. Qg2
{[%clk 0:00:30.5]} 32... Qe3 {[%clk 0:01:15.6]} 33. Nf6 {[%clk 0:00:28.8]} 33...
Rg6 {[%clk 0:01:14.1]} 34. gxh6 {[%clk 0:00:23.8]} 34... Rxd6 {[%clk 0:01:12]}
35. exd6 {[%clk 0:00:22.3]} 1-0

[Event "Early-Titled-Tuesday-Blitz-March-26-2024"]
[Site "Chess.com"]
[Date "2024.03.26"]
[Round "8"]
[White "FranklinAPalomo"]
[Black "PawnEatingZombie"]
[Result "1-0"]
[WhiteElo "2640"]
[BlackElo "2184"]
[TimeControl "180+1"]
[EndTime "9:24:00 PDT"]
[Termination "FranklinAPalomo won by resignation"]

1. Nf3 {[%clk 0:03:00.9]} 1... d6 {[%clk 0:02:52.8]} 2. c4 {[%clk 0:03:01.3]}
2... e5 {[%clk 0:02:51.6]} 3. Nc3 {[%clk 0:03:00]} 3... f5 {[%clk 0:02:51.4]} 4.
d3 {[%clk 0:02:59.9]} 4... Nf6 {[%clk 0:02:51]} 5. g3 {[%clk 0:03:00.4]} 5...
Be7 {[%clk 0:02:51]} 6. Bg2 {[%clk 0:03:01.1]} 6... O-O {[%clk 0:02:51.4]} 7.
O-O {[%clk 0:03:01.5]} 7... Nc6 {[%clk 0:02:46.8]} 8. Bg5 {[%clk 0:03:01.3]}
8... Qe8 {[%clk 0:02:46.7]} 9. Bxf6 {[%clk 0:03:01.3]} 9... Bxf6 {[%clk
0:02:46.6]} 10. Rb1 {[%clk 0:03:01.9]} 10... a5 {[%clk 0:02:45.5]} 11. e3 {[%clk
0:03:02.1]} 11... Bd8 {[%clk 0:02:38.4]} 12. Nd2 {[%clk 0:03:00.8]} 12... f4
{[%clk 0:02:37]} 13. exf4 {[%clk 0:03:01.7]} 13... exf4 {[%clk 0:02:36.9]} 14.
Nd5 {[%clk 0:02:58.9]} 14... Nd4 {[%clk 0:02:20.6]} 15. Re1 {[%clk 0:02:56.7]}
15... Qg6 {[%clk 0:02:13.2]} 16. Nb3 {[%clk 0:02:54.1]} 16... f3 {[%clk
0:02:01.4]} 17. Nxd4 {[%clk 0:02:48.1]} 17... fxg2 {[%clk 0:02:01.2]} 18. Qe2
{[%clk 0:02:39.8]} 18... c6 {[%clk 0:01:51.3]} 19. Nf4 {[%clk 0:02:31.4]} 19...
Qh6 {[%clk 0:01:36.6]} 20. Nde6 {[%clk 0:02:26.2]} 20... Bxe6 {[%clk 0:01:30.2]}
21. Qxe6+ {[%clk 0:02:25.4]} 21... Qxe6 {[%clk 0:01:29.6]} 22. Nxe6 {[%clk
0:02:25.1]} 22... Re8 {[%clk 0:01:26.8]} 23. Kxg2 {[%clk 0:02:23.9]} 23... Bf6
{[%clk 0:01:21.5]} 24. b3 {[%clk 0:02:15]} 24... Kf7 {[%clk 0:01:16.1]} 25. Nf4
{[%clk 0:02:12.8]} 25... a4 {[%clk 0:01:12.6]} 26. Rxe8 {[%clk 0:02:09.6]} 26...
Kxe8 {[%clk 0:01:06.7]} 27. bxa4 {[%clk 0:02:10.3]} 27... Rxa4 {[%clk 0:01:04]}
28. Rxb7 {[%clk 0:02:09.6]} 28... Rxa2 {[%clk 0:01:04.5]} 29. Kf3 {[%clk
0:02:02.1]} 29... Bd4 {[%clk 0:01:03.4]} 30. Ne2 {[%clk 0:02:00.4]} 30... Bf6
{[%clk 0:00:57.5]} 31. Ke3 {[%clk 0:01:58.7]} 31... Kd8 {[%clk 0:00:53.4]} 32.
h4 {[%clk 0:01:57.8]} 32... Kc8 {[%clk 0:00:52.8]} 33. Rf7 {[%clk 0:01:58.4]}
33... h6 {[%clk 0:00:47.6]} 34. Nd4 {[%clk 0:01:56.3]} 34... d5 {[%clk
0:00:22.2]} 35. Nxc6 {[%clk 0:01:52.4]} 35... dxc4 {[%clk 0:00:21.7]} 36. dxc4
{[%clk 0:01:53.3]} 36... Rc2 {[%clk 0:00:20.5]} 37. Ne7+ {[%clk 0:01:39.7]}
37... Kd8 {[%clk 0:00:20.1]} 38. Nd5 {[%clk 0:01:38.9]} 38... Bb2 {[%clk
0:00:09.9]} 39. Kd3 {[%clk 0:01:36.9]} 39... Rc1 {[%clk 0:00:08]} 40. f4 {[%clk
0:01:34.3]} 40... Rg1 {[%clk 0:00:06.9]} 41. c5 {[%clk 0:01:28.6]} 41... Rxg3+
{[%clk 0:00:06.3]} 42. Ke4 {[%clk 0:01:29.3]} 42... Ba3 {[%clk 0:00:03.5]} 43.
c6 {[%clk 0:01:29.3]} 43... Bd6 {[%clk 0:00:03.2]} 44. Rd7+ {[%clk 0:01:29.1]}
1-0

[Event "Early-Titled-Tuesday-Blitz-March-26-2024"]
[Site "Chess.com"]
[Date "2024.03.26"]
[Round "8"]
[White "Nechitaylo_Nikita"]
[Black "frequentblunders"]
[Result "1-0"]
[WhiteElo "2379"]
[BlackElo "2186"]
[TimeControl "180+1"]
[EndTime "9:24:11 PDT"]
[Termination "Nechitaylo_Nikita won by resignation"]

1. d4 {[%clk 0:03:00.9]} 1... e6 {[%clk 0:02:59.8]} 2. c4 {[%clk 0:03:01.5]}
2... c5 {[%clk 0:03:00.7]} 3. d5 {[%clk 0:02:57.7]} 3... Nf6 {[%clk 0:03:00.7]}
4. Nc3 {[%clk 0:02:57.6]} 4... d6 {[%clk 0:02:58.3]} 5. Nf3 {[%clk 0:02:49.7]}
5... g6 {[%clk 0:02:57.4]} 6. e4 {[%clk 0:02:48.7]} 6... exd5 {[%clk 0:02:56.2]}
7. cxd5 {[%clk 0:02:48]} 7... Bg7 {[%clk 0:02:56.4]} 8. Bd3 {[%clk 0:02:47.7]}
8... O-O {[%clk 0:02:56.4]} 9. h3 {[%clk 0:02:46.7]} 9... Re8 {[%clk 0:02:56.7]}
10. O-O {[%clk 0:02:46.5]} 10... a6 {[%clk 0:02:56.7]} 11. a4 {[%clk 0:02:47.1]}
11... Nbd7 {[%clk 0:02:56.8]} 12. Bf4 {[%clk 0:02:45]} 12... Ne5 {[%clk
0:02:56.4]} 13. Bxe5 {[%clk 0:02:26.6]} 13... dxe5 {[%clk 0:02:57.3]} 14. Nd2
{[%clk 0:02:26]} 14... Nh5 {[%clk 0:02:53.2]} 15. Nc4 {[%clk 0:02:23.1]} 15...
Nf4 {[%clk 0:02:52.3]} 16. Ne2 {[%clk 0:02:19.3]} 16... Qg5 {[%clk 0:02:46]} 17.
Ng3 {[%clk 0:02:08.4]} 17... h5 {[%clk 0:02:19.1]} 18. Qf3 {[%clk 0:01:49.3]}
18... h4 {[%clk 0:02:07.8]} 19. Kh2 {[%clk 0:01:42.5]} 19... hxg3+ {[%clk
0:02:06.2]} 20. fxg3 {[%clk 0:01:43]} 20... Nxd3 {[%clk 0:02:03.5]} 21. Qxf7+
{[%clk 0:01:43.5]} 21... Kh7 {[%clk 0:02:03.2]} 22. Qxe8 {[%clk 0:01:44.4]}
22... b5 {[%clk 0:01:23.5]} 23. Nb6 {[%clk 0:01:06.7]} 23... Bxh3 {[%clk
0:01:08]} 24. Nxa8 {[%clk 0:00:43.6]} 24... Qd2 {[%clk 0:00:46]} 25. Rg1 {[%clk
0:00:34.4]} 25... Bg4 {[%clk 0:00:37.9]} 26. Qe7 {[%clk 0:00:27.5]} 1-0